Cogmind - Beta 13 @@@ ROGUE MODE // 2024.04.01 @ 13:56:06 Player: SPRING Result: Destroyed by G-34 Mercenary with Small Laser Performance ------------- Evolutions (1) 500 Regions Visited (3) 600 Robots Destroyed (28) 140 Value Destroyed (877) 877 Prototype IDs (1) 20 Alien Tech Used (0) 0 Bonus (57) 57 TOTAL SCORE: 2194 Bonus ------- High Alert Combat Kills 32 Follower Combat Kills 25 Cogmind --------- Core Integrity 0/400 Matter 300/300 Energy 100/100 System Corruption 8% Temperature Cool (6) Movement Treading (160) Location -9/Materials Parts ------- > --- POWER (2) -------- (None) > --- PROPULSION (2) --- Improved Treads > --- UTILITY (3) ------ (None) > --- WEAPON (2) ------- (None) > --- INVENTORY (5) ---- Heat Sink Peak State ------------ > --- POWER ------------ Ion Engine Improved Ion Engine > --- PROPULSION ------- VTOL Module VTOL Module > --- UTILITY ---------- Terrain Scanner Improved Targeting Computer Improved Targeting Computer > --- WEAPON ----------- Small Laser Small Laser > --- INVENTORY -------- VTOL Module Heat Sink Improved Heat Sink [Rating: 14] Favorites ----------- Power Ion Engine Engine Ion Engine Propulsion Flight Unit Treads Improved Treads Leg Aluminum Leg Wheel Wheel Flight Unit Flight Unit Utility Improved Targeting Computer Device Terrain Scanner Processor Improved Targeting Computer Weapon Light Assault Rifle Energy Gun Small Laser Ballistic Gun Light Assault Rifle Launcher Grenade Launcher Build | -11 -10 -10 -9 ------- Run | Yrd Mat Min Mat Slots Evolved 2 | . . . 2 Power 1 | . . . 1 Propulsion . | . . . . Utility 1 | . . . 1 Weapon . | . . . . Parts Attached 37 | 6 2 7 22 Power 6 | 2 . 2 2 Engine 6 | 2 . 2 2 Core . | . . . . Reactor . | . . . . Propulsion 16 | 2 . 2 12 Treads 2 | . . . 2 Leg 5 | . . . 5 Wheel 2 | 2 . . . Hover . | . . . . Flight 7 | . . 2 5 Utility 5 | . . 2 3 Device 3 | . . 2 1 Storage . | . . . . Processor 2 | . . . 2 Hackware . | . . . . Protection . | . . . . Artifact . | . . . . Weapon 10 | 2 2 1 5 Energy Gun 4 | . . . 4 Energy Cannon . | . . . . Ballistic Gun 5 | 2 1 1 1 Ballistic Cannon . | . . . . Launcher 1 | . 1 . . Special Weapon . | . . . . Impact Weapon . | . . . . Slashing Weapon . | . . . . Piercing Weapon . | . . . . Special Melee Weapon . | . . . . Unidentified Prototypes . | . . . . Parts Lost 20 | . . 2 18 Power 4 | . . 1 3 Propulsion 7 | . . 1 6 Utility 3 | . . . 3 Weapon 6 | . . . 6 Highest Loss Streak 5 | . . 2 5 To Critical Strikes . | . . . . Average Slot Usage (%) 64 | . 64 90 53 Engine 8 | . 14 11 6 Leg 1 | . . . 3 Wheel 3 | . 28 3 . Flight 12 | . . 23 9 Device 10 | . . 21 6 Processor 8 | . . . 14 Energy Gun 3 | . . . 6 Ballistic Gun 13 | . 14 28 6 Naked Turns 9 | . . . 9 Heaviest Build 14 | 8 10 9 14 Greatest Support 23 | 20 20 20 23 Greatest Overweight (x) 2 | . . 1 2 Average Overweight (x) . | . . . . Largest Inventory Capacity 5 | 5 5 5 5 Average Capacity 5 | 5 5 5 5 Most Carried 4 | 1 3 4 4 Average Carried 1 | . 1 2 1 Final Capacity 5 | 5 5 5 5 Final Carried 3 | 1 1 3 1 Class Distribution -------------------- 65% | Mutant 24% | Scavenger-Mutant 10% | Sprinter Dominant Class ---------------- Mutant | -10/Materials Scavenger-Mutant | -10/Mines Mutant | -9/Materials Resources | -11 -10 -10 -9 ----------- Run | Yrd Mat Min Mat Matter Collected 706 | 272 . 166 268 Remotely . | . . . . Salvage Created 1029 | 38 . 224 767 Parts 63 | 2 . 15 46 Haulers Intercepted . | . . . . Recyclers Shooed 1 | . . . 1 Parts Field Recycled . | . . . . Retrieved Matter . | . . . . Parts Self-Destructed . | . . . . Prevented . | . . . . Kills | -11 -10 -10 -9 ------- Run | Yrd Mat Min Mat Combat Hostiles Destroyed 28 | 1 . 9 18 Melee 1 | . . . 1 Guns 27 | 1 . 9 17 Classes Destroyed 3 | 1 . 1 1 Swarmer 6 | . . 6 . Grunt 19 | 1 . 3 15 Sentry 3 | . . . 3 Best Kill Streak 4 | 1 . 3 4 Combat Bots Only 4 | 1 . 3 4 Max Kills in Single Turn 2 | 1 . 2 1 Gunslinging 1 | . . 1 . Exploded . | . . . . Melee 1 | . . . 1 Uniques/NPCs Destroyed . | . . . . Combat | -11 -10 -10 -9 -------- Run | Yrd Mat Min Mat Hostile Shots Fired 219 | 3 . 48 168 Missed 76 | 2 . 16 58 Damage Taken 1747 | 10 . 345 1392 Core 475 | 10 . 59 406 Absorbed by Shields . | . . . . Regen/Repaired (Parts) 11 | . . . 11 Core Remaining (%) 84 | 96 . 72 . Volleys Fired 111 | 3 2 26 80 Largest 2 | 2 1 2 2 Hottest 80 | 40 20 40 80 Shots Fired 173 | 6 2 52 113 Gun 173 | 6 2 52 113 Cannon . | . . . . Launcher . | . . . . Special . | . . . . Kinetic 117 | 6 2 52 57 Thermal 56 | . . . 56 Explosive . | . . . . Electromagnetic . | . . . . Robot Hit Streak 14 | 5 7 6 14 Robot Miss Streak 3 | . . 3 2 Penetration Max . | . . . . Secondary Targets 3 | . . 2 1 Max Gunslinging Chain 1 | . . 1 1 Shots Hit Robots 125 | 5 2 34 84 Core Hits 64 | 2 1 15 46 Critical Kills . | . . . . Critical Parts Destroyed . | . . . . Critical Strikes 1 | . . . 1 Burn 1 | . . . 1 Melee Attacks . | . . . . Impact . | . . . . Slashing . | . . . . Piercing . | . . . . Sneak Attacks . | . . . . Combat Hostiles . | . . . . Follow-up Attacks . | . . . . Damage Inflicted 1512 | 55 25 341 1091 Guns 1462 | 55 25 341 1041 Cannons . | . . . . Explosions . | . . . . Melee . | . . . . Ramming 50 | . . . 50 Kinetic 945 | 55 25 341 524 Thermal 517 | . . . 517 Explosive . | . . . . Electromagnetic . | . . . . Impact . | . . . . Slashing . | . . . . Piercing . | . . . . Highest Corruption 8 | . . . 8 Average Corruption 3 | . . . 3 Corruption Purged . | . . . . Corruption Blocked . | . . . . Effects 6 | . . . 6 Message Errors 3 | . . . 3 Heat Flow Errors 1 | . . . 1 Energy Discharges 2 | . . . 2 Overload Shots . | . . . . Overflow Damage 65 | . . . 65 Projectiles . | . . . . Explosions 65 | . . . 65 Melee . | . . . . Knockbacks . | . . . . Impact . | . . . . Kinetic . | . . . . Secondary . | . . . . Self-Inflicted Damage 122 | . . . 122 Shots 1 | . . . 1 Rammed 17 | . . . 17 Targets Rammed 17 | . . . 17 Kicked . | . . . . Crushed . | . . . . Highest Temperature 102 | . . 18 102 Average Temperature 30 | . . 11 33 Received Heat Transfer 798 | 6 . 144 648 Siege Activations . | . . . . Robots Corrupted . | . . . . Combat Hostiles . | . . . . Parts Fried . | . . . . Impact Corruptions . | . . . . Robots Melted . | . . . . Combat Hostiles . | . . . . Parts Melted 4 | . . . 4 Heat Transferred 1283 | . . . 1283 Parts Sabotaged . | . . . . Parts Stolen . | . . . . Parts Stripped . | . . . . Power Chain Reactions . | . . . . Alert | -11 -10 -10 -9 ------- Run | Yrd Mat Min Mat Peak Influence 476 | 20 28 256 476 Initial 99 | . 13 10 99 Average 228 | 3 16 168 308 Maximum Alert Level 2 | . . 1 2 Low Security (%) 49 | 100 100 87 19 Level 1 41 | . . 12 65 Level 2 9 | . . . 15 Level 3 . | . . . . Level 4 . | . . . . Level 5 . | . . . . High Security . | . . . . Max Security . | . . . . Squads Dispatched 8 | . . 2 6 Investigation 5 | . . 1 4 Extermination . | . . . . Reinforcement 2 | . . . 2 Assault 1 | . . 1 . Garrison . | . . . . Intercept . | . . . . Searches Triggered . | . . . . Construction Impeded . | . . . . Haulers Reinforced . | . . . . Active Scanning Responses . | . . . . Cargo Convoy Interrupts . | . . . . Stealth | -11 -10 -10 -9 --------- Run | Yrd Mat Min Mat Distress Signals . | . . . . Communications Jammed . | . . . . Distress Signals . | . . . . Times Spotted 39 | 1 2 9 27 Peak Tracking Total 5 | 1 2 3 5 Tactical Retreats 3 | . . 1 2 Traps | -11 -10 -10 -9 ------- Run | Yrd Mat Min Mat Traps Triggered 2 | . 1 . 1 Indirectly . | . . . . Trap Hack Attempts . | . . . . Triggered . | . . . . Disarmed . | . . . . Reprogrammed . | . . . . Reused . | . . . . Traps Extracted . | . . . . Installed . | . . . . Triggered . | . . . . Machines | -11 -10 -10 -9 ---------- Run | Yrd Mat Min Mat Machines Disabled 1 | . . . 1 Max in Single Turn 1 | . . . 1 Machines Repaired . | . . . . Machines Dismantled . | . . . . Machines Sabotaged . | . . . . Overloaded Fab Kills . | . . . . Hacking | -11 -10 -10 -9 --------- Run | Yrd Mat Min Mat Machines Accessed 7 | . . 1 6 Terminals 2 | . . . 2 Fabricators . | . . . . Repair Stations 2 | . . . 2 Recycling Units 1 | . . . 1 Scanalyzers 1 | . . . 1 Garrison Access . | . . . . Total Hacks 23 | . . 1 22 Successful 16 | . . 1 15 Failed 7 | . . . 7 Catastrophic 2 | . . . 2 Database Lockouts . | . . . . Manual 7 | . . . 7 Terminals 11 | . . . 11 Fabricators . | . . . . Repair Stations 5 | . . . 5 Recycling Units 3 | . . . 3 Scanalyzers 3 | . . . 3 Garrison Access . | . . . . Terminal Hacks 9 | . . 1 8 Record 4 | . . . 4 Open Door 1 | . . 1 . Alert Level 1 | . . . 1 Dispatch Records 1 | . . . 1 Surveillance Status 1 | . . . 1 Zone Layout 1 | . . . 1 Fabricator Hacks . | . . . . Repair Station Hacks 3 | . . . 3 Scan Component 2 | . . . 2 Repair 1 | . . . 1 Recycling Unit Hacks 3 | . . . 3 Recycle Component 1 | . . . 1 Process 2 | . . . 2 Scanalyzer 1 | . . . 1 Insert Component 1 | . . . 1 Garrison Access Hacks . | . . . . Unauthorized Hacks . | . . . . Terminals . | . . . . Fabricators . | . . . . Repair Stations . | . . . . Recycling Units . | . . . . Scanalyzers . | . . . . Garrison Access . | . . . . Data Cores Recovered . | . . . . Used . | . . . . Hacking Detections 6 | . . . 6 Full Trace Events 3 | . . . 3 Feedback Events . | . . . . Feedback Blocked . | . . . . Robot Schematics Acquired . | . . . . Robots Built . | . . . . Authchips . | . . . . Time . | . . . . Total Robot Build Rating . | . . . . Part Schematics Acquired . | . . . . Parts Built . | . . . . Authchips . | . . . . Time . | . . . . Total Part Build Rating . | . . . . Parts Repaired 1 | . . . 1 Time 26 | . . . 26 Parts Recycled 1 | . . . 1 Recycled Matter 41 | . . . 41 Retrieved Matter . | . . . . Retrieved Components . | . . . . Parts Scanalyzed 1 | . . . 1 Part Schematics Acquired . | . . . . Parts Damaged 1 | . . . 1 Bothacking | -11 -10 -10 -9 ------------ Run | Yrd Mat Min Mat Used RIF Installer . | . . . . Robots Hacked . | . . . . Non-combat . | . . . . Combat . | . . . . Robot Hacks Applied . | . . . . Relay Couplers Released . | . . . . Fabnet Peak Effective % . | . . . . Robots Rewired . | . . . . Allies Hacked . | . . . . Hacks Repelled . | . . . . Allies | -11 -10 -10 -9 -------- Run | Yrd Mat Min Mat Total Allies 1 | . . 1 . Largest Group 1 | . . 1 . Highest-Rated Group 31 | . . 31 . Highest-Rated Ally 31 | . . 31 . Total Orders . | . . . . Ally Attacks 3 | . . 3 . Total Damage 62 | . . 62 . Kills 1 | . . 1 . Allies Corrupted . | . . . . Allies Melted . | . . . . Intel | -11 -10 -10 -9 ------- Run | Yrd Mat Min Mat Robot Analysis Total . | . . . . Derelict Logs Recovered 1 | . . 1 . Drone Launches . | . . . . Drone Recoveries . | . . . . Exploration | -11 -10 -10 -9 ------------- Run | Yrd Mat Min Mat Turns Passed 1311 | 90 92 362 767 Spaces Moved 1560 | 97 104 706 653 Core 90 | 24 . . 66 Treads 38 | . . . 38 Legs 76 | . . . 76 Wheels 204 | 73 104 27 . Hover . | . . . . Flight 1152 | . . 679 473 Fastest Speed 32 | 50 80 37 32 Average Speed 60 | 72 80 39 79 Slowest Speed 160 | 80 80 117 160 Overloaded Moves . | . . . . Propulsion Burnouts . | . . . . Robots Hopped 9 | . . 8 1 Cave-ins Triggered . | . . . . Exploration Rate (%) 32 | 7 18 83 22 Regions Visited 3 Branch Regions 1 Pre-discovered Areas . | . . . . Known Exits Taken . | . . . . Unknown Exits Taken 3 | 1 1 1 . Scrap Searched 1 | . . 1 . Spaces Dug . | . . . . Terrain Destroyed 24 | . . . 24 Melee . | . . . . Projectile . | . . . . AOE 24 | . . . 24 Terrain Rammed . | . . . . Walls Destroyed . | . . . . Machines Disabled . | . . . . Actions | -11 -10 -10 -9 --------- Run | Yrd Mat Min Mat Total 1749 | 108 111 739 791 Wait 3 | 2 . . 1 Move 1539 | 96 103 689 651 Hop 9 | . . 8 1 Pick Up 12 | 1 2 3 6 Fast Attach 20 | 4 . 4 12 Attach 12 | 1 2 1 8 Detach 9 | . 1 2 6 Swap 5 | 1 . 2 2 Drop 12 | . 1 4 7 Fire 111 | 3 2 26 80 Melee . | . . . . Ram 17 | . . . 17 Kick . | . . . . Crush . | . . . . Escape Stasis . | . . . . Rewire . | . . . . Trap . | . . . . Miscellaneous . | . . . . Route ------- -11/Scrapyard -10/Materials -10/Mines (discovered 2 exits: *Mat x2) -9/Materials History --------- Turn | Location | Event 2 | -11/Scrapyard | Met Revision 17 65 | -11/Scrapyard | Discovered new exit (range 8) 91 | -11/Scrapyard | Entered Materials 120 | -10/Materials | Discovered new exit (range 12) 183 | -10/Materials | Entered Mines 270 | -10/Mines | Found a damaged Exp. Sensor Array with a note attached 271 | -10/Mines | Found Prototype Device 364 | -10/Mines | Discovered new exit (range 5) 426 | -10/Mines | Met a Derelict testing a Signal Generator 475 | -10/Mines | Met a Derelict shopkeep closing up shop 537 | -10/Mines | Discovered new exit (range 10) 545 | -10/Mines | Entered Materials 545 | -9/Materials | Evolved 2 slots: Power x1, Utility x1 580 | -9/Materials | Repaired Flight Unit? 581 | -9/Materials | Identified Exp. Sensor Array 752 | -9/Materials | Lost 3 parts (1p2w) 982 | -9/Materials | Core integrity fell below 50% 1018 | -9/Materials | Lost 5 parts (1p2n1u1w) 1152 | -9/Materials | Lost 3 parts (1p1n1w) 1194 | -9/Materials | Core integrity fell below 20% 1227 | -9/Materials | Lost 3 parts (1n1u1w) 1291 | -9/Materials | Build established: Mutant 1312 | -9/Materials | Destroyed by G-34 Mercenary with Small Laser Last Messages --------------- I3M/YJL2 ,XD/3>YV9AKD Acquired 25 matter. Acquired 6 matter. R-06 Scavenger inserts Sml. Laser into recycling unit. Slammed into O-16 Technician. Slammed into U-05 Engineer. Broken Imp. Targeting Computer destroyed. System corrupted by crushing effect (+5). Slammed into A-02 Transporter. Acquired 10 matter. K-01 Serf cleans the Matter Filter. Triggered Alarm Trap. An alarm sounds. ALERT: Alarm triggered, dispatching investigation squad. U-05 Engineer lays Concrete. [Achievement: First Step to Greatness] Map ----- +----------------------------------------------------+ | ?????????????????????????????????????????????????? | | ?????????????????????????????????????????????????? | | ?????????????????????????????????????????????????? | | ?????????????????????????????????????????????????? | | ?????????????????????????????????????????????????? | | ?????????????????????????????????????????????????? | | ?????????????????????????????????????????????????? | | ?????????????????????????????????????????????????? | | ?????????????????????????????????????????????????? | | ?????????????????????????????????????????????????? | | ?????????????????????????????????????????????????? | | ????????????????????? ??????????????????????????? | | ???????????????????###u##????????????????????????? | | ???????????????????# ###?????????????????????? | | ???????????????????# ?????????????????????? | | ???????????????????# ?????????????????????? | | ???????????????????# ?????????????????????? | | ???????????????????? #?????????????????????? | | ????????????????????# r#?????????????????????? | | ????????????????????# u #?????????????????????? | | ????????????????????# k #?????????????????????? | | ????????????????????# #??###????????????????? | | ????????????????????# #?? !##??????????#####? | | ????????????????????# #?? !#??????????# ? | | ????????????????????# %### !#??????????# "" | | ????????????????????+ @u !#??????????#[ """ | | ????????????????????# !#??????????# """ | | ????????????????????# !##??????????# """ | | ????????????????????######g#+####???????????# "" | | ?????????????????????# #??????????????# | | ?????????????????????# """""#??????????##### | | ?????????????????????# """""#?????????########### | | ?????????????????????# """""#?????????# | | ?????????????????????# %"""""#?????????# | | ?????????????????????# """""#??#???#??# | | ?????????????????????# """""#?????????# | | ?????????????????????# """""#??#??????# % | | ?????????????????????# #?????????#+#####+### | | ?????????????????????# #?????????# # # % + | | ?????????????????????# #?????????# ## # # | | ?????????????????????#######+#?????????# #### + | | ???????????????????????????# #?????????#%#??# # | | ???????????????????????????# #???????###+#### % # | | ???????????????????????????# #???????# # % # | | ???????????????????????????# #???????# # ## | | ???????????????????????????# #???????# """ + ## | | ???????????????????????????# #????#??# """ # % # | | ???????????????????????????# #???????# """ # # | | ???????????????????????????# #???????# # # | | ???????????????????????????# #???????######## # | +----------------------------------------------------+ Best States ------------- Heat Dissipation 39 Energy Generation 17 Energy Capacity 415 Matter Stores 300 Matter Capacity 300 Sight Range 16 Terrain Scan Range 14 Terrain Scan Density 10 Evasion (%) 63 Targeting Accuracy 12 Recoil Reduction 1 Item Schematics ----------------- None Robot Schematics ------------------ None Fabricated ------------ Nothing Alien Tech Used ----------------- None Achievements -------------- Crack Shot First Step to Greatness Fist Fight One Hack Too Far Part-time Mechanic Safety First Uninvited Guest Challenges ------------ None Game ------ Seed GrapheneReflectiveStorm Manual? 0 Play Time 00:59:33 Cumulative 1.9 hours Start 2024.04.01 @ 12:46:04 End 2024.04.01 @ 13:56:06 Sessions 1 Manual Loads 0 Difficulty Rogue Special Mode None Game No. 1 Rogue 1 Adventurer 0 Explorer 0 Win Type - Total 0 Types 0/0/0/0/0/0/0/0/0 Lore% 0 Gallery% 1 Achievement% 2 Wizard Run 0 Options --------- Layout 1 ASCII 0 Keyboard 1 Movement Arrows Keybinds 0 Fullscreen 2 Font 32/Tamsyn Map View 50x40 Zoom Use 0% Tactical HUD 0 Map Filters NONE Filters NONE Steam 1 RUN: 1e6936e9-d7ba-4e64-8950-585d845abd75